bitfinex/quotes_ETHUSD_20241013
["timestamp","ask_amount","ask_price","bid_price","bid_amount"]
[1728799362870,1.27602803,2470.3,2470.1,4.04841]
[1728799363726,1.27602803,2470.2,2470.1,4.04841]
[1728799363940,1.27602803,2470.2,2470.1,4.17516752]
[1728799365871,1.27602803,2470.3,2470.1,4.17516752]
[1728799366082,1.27602803,2470.3,2470.1,4.04841]
[1728799366370,1.70249513,2470.4,2470.1,4.04841]
[1728799366371,1.27602803,2470.2,2470.1,4.04841]
[1728799366571,1.27602803,2470.2,2470.1,4.17516722]
[1728799368752,1.27602803,2470.2,2470.1,4.04841]
[1728799368950,1.27602803,2470.3,2470.1,4.17516724]
[1728799369155,1.27602803,2470.3,2470.1,4.04841]
[1728799369681,1.70249513,2470.4,2470.1,4.04841]
[1728799369682,1.27602803,2470.2,2470.1,4.04841]
[1728799369837,1.27602803,2470.2,2470.1,4.17516618]
[1728799370880,1.27602803,2470.3,2470.1,4.17516618]
[1728799371032,1.70249513,2470.3,2470.1,4.04841]
[1728799371237,1.27644773,2470.3,2470.2,0.1267576]
[1728799371452,1.70249513,2470.4,2470.1,4.04841]
[1728799371652,1.27643116,2470.2,2470.1,4.04841]
[1728799371953,1.27643116,2470.2,2470.1,4.17516598]
[1728799372971,1.27643116,2470.2,2470.1,4.17516583]
[1728799376145,1.27643116,2470.2,2470.1,4.04841]
[1728799376348,1.27643116,2470.2,2470.1,4.17516598]
[1728799379047,1.27533116,2470.2,2470.1,4.17516598]
[1728799379546,3.20207145,2470.2,2470.1,0.12675598]
[1728799379748,2.21311866,2470.2,2470.1,0.12675598]
[1728799379943,2.21311866,2470.2,2470.1,0.12676276]
[1728799380172,1.70249513,2470.2,2470.1,0.12676276]
[1728799386176,1.70249513,2470.2,2470.1,0.12676257]
[1728799389904,1.70249513,2470.2,2470.1,0.12676177]
[1728799393485,1.70249513,2470.2,2470.0,4.04848]
[1728799393685,1.70249513,2470.2,2470.1,0.12676171]
[1728799397315,1.70249513,2470.3,2470.1,0.12676171]
[1728799397518,1.70249513,2470.3,2470.2,0.12676171]
[1728799399819,2.1283852,2470.4,2470.2,0.12676171]
[1728799400015,2.1283852,2470.4,2470.0,4.04846]
[1728799400332,1.27705835,2470.1,2470.0,4.04846]
[1728799400538,1.27705835,2470.1,2470.0,4.17521993]
[1728799405137,1.27705835,2470.1,2470.0,4.04846]
[1728799405337,1.27705835,2470.1,2470.0,4.17522024]
[1728799408847,1.27705835,2470.1,2470.0,4.17521843]
[1728799411433,1.27705835,2470.1,2470.0,4.66154909]
[1728799411638,1.27705835,2470.1,2470.0,6.11571043]
[1728799411854,1.27705835,2470.2,2470.1,4.04841]
[1728799412052,1.27705835,2470.2,2470.1,4.66149909]
[1728799412422,1.27705835,2470.2,2470.1,4.04841]
[1728799412622,1.27705835,2470.2,2470.1,4.17516759]
[1728799413026,1.27705835,2470.2,2470.1,5.22471198]
[1728799414113,1.27705835,2470.3,2470.1,6.01571198]
[1728799414317,1.27705835,2470.2,2470.1,5.88895439]
[1728799414548,1.27705835,2470.3,2470.2,4.04825]
[1728799414728,1.27705835,2470.3,2470.2,4.17500158]
[1728799416363,1.27705835,2470.3,2470.2,4.17500192]
[1728799417558,1.27705835,2470.3,2470.2,4.04825]
[1728799418721,1.27705835,2470.3,2470.2,4.17500199]
[1728799419054,1.27705835,2470.3,2470.2,4.47885841]
[1728799419865,1.27705835,2470.3,2470.2,4.88496706]
[1728799427767,1.27705835,2470.3,2470.2,4.45435865]
[1728799427958,1.27705835,2470.3,2470.2,4.58111274]
[1728799428170,1.27705835,2470.3,2470.2,4.88494372]
[1728799431602,1.27705835,2470.3,2470.2,4.88494165]
[1728799433489,1.27705835,2470.3,2470.2,0.83669165]
[1728799433696,1.70274447,2470.4,2470.2,0.83669165]
[1728799433915,1.70274447,2470.3,2470.2,0.40610865]
[1728799434059,1.70274447,2470.4,2470.2,0.83672187]
[1728799434256,2.94472699,2470.5,2470.3,0.30385863]
[1728799434562,0.817,2470.5,2470.2,0.40610865]
[1728799434768,1.70229807,2470.4,2470.3,0.30386326]
[1728799435875,2.94487259,2470.5,2470.2,0.40610865]
[1728799436103,1.70231747,2470.3,2470.2,0.40610865]
[1728799436408,1.70231747,2470.3,2470.2,0.83672914]
[1728799439399,1.70231747,2470.3,2470.2,0.53286427]
[1728799439709,2.94487259,2470.5,2470.2,0.8367472]
[1728799439710,1.70231747,2470.4,2470.2,0.8367472]
[1728799439999,2.94499132,2470.5,2470.3,0.30388293]
[1728799440202,2.94499132,2470.5,2470.2,0.40610865]
[1728799440402,1.70240827,2470.3,2470.2,0.40610865]
[1728799440605,1.70240827,2470.3,2470.2,0.83675737]
[1728799440905,1.70240827,2470.4,2470.2,0.83675737]
[1728799441108,1.70240827,2470.4,2470.3,0.3038931]
[1728799441292,1.70241386,2470.4,2470.3,0.3038931]
[1728799441602,2.94499132,2470.5,2470.3,0.3038931]
[1728799441802,2.94499132,2470.5,2470.2,0.40610865]
[1728799442021,1.70242528,2470.4,2470.3,0.30389759]
[1728799442164,2.94499132,2470.5,2470.3,0.30389759]
[1728799442366,1.70245816,2470.4,2470.2,0.40610865]
[1728799443605,1.27686573,2470.3,2470.2,0.40610865]
[1728799443810,1.27686573,2470.3,2470.2,0.53286226]
[1728799444110,1.70245816,2470.4,2470.2,0.53286226]
[1728799444318,1.70245816,2470.4,2470.2,0.40610865]
[1728799447217,1.70245816,2470.4,2470.3,0.12675469]
[1728799449111,1.27696329,2470.4,2470.3,6.38699302]
[1728799449419,0.85117903,2470.4,2470.3,10.88656934]
[1728799449622,0.85117903,2470.5,2470.4,4.59792]
[1728799449932,1.27696329,2470.6,2470.4,4.59792]
[1728799449933,1.27696329,2470.6,2470.5,4.59776]
[1728799450095,1.27696329,2470.6,2470.5,6.22406963]
[1728799450613,0.85090572,2470.6,2470.5,6.22406963]
[1728799450791,0.85090572,2470.6,2470.5,7.02326963]
[1728799450987,0.85090572,2470.6,2470.5,8.85803722]
[1728799451224,0.85090572,2470.7,2470.6,4.04759]
[1728799451428,0.85090572,2470.7,2470.6,5.67389963]
[1728799451598,0.85090572,2470.7,2470.6,6.22389963]
[1728799451799,0.85090572,2470.8,2470.7,4.04743]
[1728799451997,0.85090572,2470.8,2470.7,5.46469303]
[1728799453723,0.85090572,2470.8,2470.7,5.33795972]
[1728799454297,0.85090572,2470.9,2470.7,5.33795972]
[1728799454534,0.85090572,2470.8,2470.7,5.33795972]
[1728799455219,0.85090572,2470.9,2470.7,5.33795972]
[1728799455894,0.85090572,2470.8,2470.7,5.33795972]
[1728799456095,0.85090572,2470.8,2470.6,10.14475632]
[1728799456330,0.85090572,2470.9,2470.6,10.14475632]
[1728799456905,0.85090572,2470.9,2470.6,4.59759]
[1728799458329,0.85090572,2470.9,2470.6,8.64508]
[1728799458816,0.85090572,2470.9,2470.7,4.04741]
[1728799460799,0.85090572,2470.9,2470.8,4.04727]
[1728799463901,0.85090572,2471.0,2470.8,4.04727]
[1728799464395,0.85090572,2471.0,2470.7,4.70335158]
[1728799468055,2.35048204,2471.0,2470.7,4.70335158]
[1728799468265,2.35048204,2471.0,2470.7,4.04741]
[1728799468933,0.85090572,2471.0,2470.7,4.04741]
[1728799469136,2.35048204,2471.0,2470.7,4.04741]
[1728799473065,0.85090572,2471.0,2470.7,4.04741]
[1728799474124,2.35048204,2471.0,2470.7,4.04741]
[1728799474324,0.85090572,2471.0,2470.7,4.04741]
[1728799475239,0.85090572,2471.0,2470.8,4.04726]
[1728799479342,0.85090572,2471.0,2470.9,4.0471]
[1728799479743,0.85090572,2471.0,2470.8,4.04726]
[1728799486791,2.30137632,2470.9,2470.8,4.04726]
[1728799487078,0.8018,2470.9,2470.8,4.04726]
[1728799487297,0.8018,2470.9,2470.6,4.04751]
[1728799487451,0.8018,2470.9,2470.7,4.04739]
[1728799488181,1.65270572,2470.9,2470.7,4.04739]
[1728799488478,0.8018,2470.9,2470.7,4.04739]
[1728799489385,1.65270572,2470.9,2470.6,4.04745]
[1728799489675,1.65270572,2470.9,2470.7,4.0474]
[1728799493178,0.85090572,2470.8,2470.7,4.0474]
[1728799493352,0.85090572,2470.8,2470.7,4.1741278]
[1728799494453,0.85090572,2470.8,2470.7,4.6598946]
[1728799495694,0.85090572,2470.8,2470.7,4.0474]
[1728799495976,0.85090572,2470.8,2470.7,4.6599956]
[1728799496174,2.07876329,2470.9,2470.7,4.6599956]
[1728799496374,2.07876329,2470.9,2470.8,0.12672667]
[1728799497082,4.31918351,2470.9,2470.8,0.12672667]
[1728799497381,0.8176,2470.8,2470.4,4.04779]
[1728799497549,0.8176,2470.8,2470.5,0.61270618]
[1728799497550,2.77645442,2470.6,2470.5,0.61270618]
[1728799497749,2.77645442,2470.6,2470.5,0.12673577]
[1728799498291,1.49957632,2470.6,2470.5,0.12673577]
[1728799498846,2.77632719,2470.6,2470.5,0.12673577]
[1728799499236,2.77632719,2470.6,2470.2,4.45424865]
[1728799499449,0.85104441,2470.5,2470.3,0.12674374]
[1728799499757,0.85104441,2470.5,2470.4,0.12674374]
[1728799502178,0.85104441,2470.5,2470.4,0.12674478]
[1728799502692,0.85104441,2470.5,2470.4,0.43037476]
[1728799505915,0.85104441,2470.5,2470.4,0.43037283]
[1728799509889,0.85104441,2470.5,2470.4,0.30362998]
[1728799510192,0.85104441,2470.5,2470.4,0.43026272]
[1728799510855,0.85104441,2470.6,2470.4,0.43026272]
[1728799511086,0.85104441,2470.6,2470.5,0.43026272]
[1728799511399,0.85104441,2470.6,2470.5,0.30352018]
[1728799511973,0.85104441,2470.6,2470.5,0.43026226]
[1728799512197,0.85104441,2470.6,2470.5,0.30352018]
[1728799513499,0.85104441,2470.6,2470.5,0.30350147]
[1728799513855,0.85104441,2470.6,2470.5,0.43024352]
[1728799514183,0.85104441,2470.6,2470.5,4.47800352]
[1728799514362,0.85104441,2470.6,2470.5,4.17450205]
[1728799514560,0.85104441,2470.6,2470.5,5.53012382]
[1728799514887,0.85104441,2470.7,2470.6,4.84749]
[1728799515202,0.85104441,2470.7,2470.6,5.27766798]
[1728799515757,0.85104441,2470.8,2470.6,5.27766798]
[1728799515957,0.85104441,2470.8,2470.7,0.43017798]
[1728799516964,0.85104441,2470.8,2470.7,0.30343593]
[1728799517209,0.85104441,2470.8,2470.7,0.43016341]
[1728799519185,3.16802073,2470.8,2470.4,0.7671]
[1728799519386,3.16802073,2470.8,2470.5,0.43026504]
[1728799519387,2.35062073,2470.7,2470.5,0.43026504]
[1728799519574,2.35062073,2470.7,2470.6,0.43026504]
[1728799519774,2.35062073,2470.7,2470.6,0.30353145]
[1728799520717,2.35062073,2470.7,2470.3,4.04797]
[1728799520979,0.85104441,2470.6,2470.4,0.43031022]
[1728799521127,0.85104441,2470.6,2470.5,0.43031022]
[1728799524408,0.85104441,2470.6,2470.3,4.04797]
[1728799524623,0.85104441,2470.6,2470.4,0.12674091]
[1728799524829,0.85104441,2470.6,2470.4,0.30355989]
[1728799525015,0.85104441,2470.6,2470.5,0.43030109]
[1728799528217,0.85104441,2470.6,2470.5,0.30355989]
[1728799528404,0.85104441,2470.6,2470.5,0.43030179]
[1728799531909,0.95546015,2470.6,2470.5,0.43033366]
[1728799535641,0.95546015,2470.6,2470.5,0.43044183]
[1728799537914,0.95546015,2470.6,2470.5,1.21604183]
[1728799539320,0.95546015,2470.6,2470.5,0.91233819]
[1728799539545,0.95546015,2470.6,2470.5,1.21606484]
[1728799542541,0.95546015,2470.6,2470.5,5.26382484]
[1728799542973,0.95546015,2470.6,2470.5,5.13708665]
[1728799543279,0.95546015,2470.6,2470.5,5.26382431]
[1728799546874,0.95546015,2470.6,2470.5,5.26382427]
[1728799548839,0.95140523,2470.6,2470.5,5.26382427]
[1728799550377,0.95140523,2470.6,2470.5,4.83336]
[1728799550544,0.95140523,2470.6,2470.5,5.26397048]
[1728799550750,0.95140523,2470.6,2470.5,5.44109916]
[1728799550934,0.95140523,2470.6,2470.5,5.56783732]
[1728799551446,0.95140523,2470.6,2470.5,1.52007732]
[1728799551672,0.95140523,2470.6,2470.5,0.73447732]
[1728799553505,1.60399206,2470.6,2470.5,0.73447732]
[1728799553699,0.10441574,2470.6,2470.5,0.73447732]
[1728799553856,1.38116661,2470.6,2470.5,0.73447732]
[1728799554056,0.10441574,2470.6,2470.5,0.73447732]
[1728799554950,0.10441574,2470.6,2470.5,0.43060536]
[1728799560383,0.95522996,2470.6,2470.5,0.43060536]
[1728799561115,0.95522996,2470.6,2470.5,0.12674138]
[1728799561398,0.95522996,2470.6,2470.5,0.43070694]
[1728799562496,0.10441574,2470.6,2470.5,0.43070694]
[1728799564200,0.10441574,2470.6,2470.5,0.43070639]
[1728799564505,1.38116661,2470.6,2470.5,0.43070639]
[1728799574608,1.38116661,2470.6,2470.3,8.09597]
[1728799574802,1.38116661,2470.6,2470.5,0.12674083]
[1728799575634,1.38116661,2470.6,2470.5,0.25348184]
[1728799576299,1.38116661,2470.6,2470.5,0.55757429]
[1728799576641,1.38116661,2470.6,2470.5,0.12674092]
[1728799576808,1.38116661,2470.6,2470.5,0.5575763]
[1728799576997,1.38116661,2470.6,2470.5,0.8616689]
[1728799584270,1.38116661,2470.6,2470.5,0.86172322]
[1728799585846,1.38116661,2470.6,2470.5,0.86172337]
[1728799586528,1.38116661,2470.6,2470.5,0.43088667]
[1728799587641,1.38116661,2470.6,2470.5,0.43088618]
[1728799587846,1.38116661,2470.6,2470.5,0.12673911]
[1728799588046,1.38116661,2470.6,2470.5,0.43088418]
[1728799591335,1.38116661,2470.6,2470.5,0.30414507]
[1728799591535,1.38116661,2470.6,2470.5,0.30414448]
[1728799591763,1.38116661,2470.6,2470.4,0.8292]
[1728799591972,0.85149619,2470.5,2470.4,0.8292]
[1728799592143,0.95586155,2470.5,2470.4,0.95594029]
[1728799592467,0.95586155,2470.5,2470.4,1.26008485]
[1728799598933,0.95586155,2470.5,2470.4,0.8292]
[1728799599137,0.95586155,2470.5,2470.4,0.9559389]
[1728799606285,0.95586155,2470.5,2470.4,0.8292]
[1728799606658,0.95586155,2470.5,2470.4,0.95593889]
[1728799608401,0.95586155,2470.5,2470.4,0.8292]
[1728799608593,0.95586155,2470.5,2470.4,0.95593885]
[1728799610298,0.95586155,2470.5,2470.4,0.95593883]
[1728799613879,0.95586155,2470.5,2470.4,0.8292]
[1728799614073,0.95586155,2470.5,2470.4,0.95593887]
[1728799617629,0.95586155,2470.5,2470.4,0.95593824]
[1728799618016,0.95586155,2470.5,2470.4,1.44256408]
[1728799621802,0.95586155,2470.5,2470.4,5.49048408]
[1728799627237,0.10436536,2470.5,2470.4,5.49048408]
[1728799627937,0.95586155,2470.5,2470.4,5.49048408]
[1728799628335,0.10436536,2470.5,2470.4,5.49048408]
[1728799635270,0.10436536,2470.5,2470.4,0.95593692]
[1728799635431,0.10436536,2470.5,2470.4,5.49039522]
[1728799635631,0.10436536,2470.5,2470.4,5.49040301]
[1728799636579,0.10436536,2470.5,2470.4,5.49040106]
[1728799636735,0.95586155,2470.5,2470.4,5.49040106]
[1728799636925,0.10436536,2470.5,2470.4,5.49040106]
[1728799637365,0.10436536,2470.5,2470.4,5.36366414]
[1728799638079,0.10436536,2470.5,2470.4,5.00385823]
[1728799639462,0.10436536,2470.5,2470.4,4.87712]
[1728799639643,0.10436536,2470.5,2470.4,5.4904047]
[1728799641361,0.10436536,2470.5,2470.4,5.49040495]
[1728799642965,0.10436536,2470.5,2470.4,4.66120495]
[1728799644444,0.10436536,2470.5,2470.4,0.61328495]
[1728799644645,1.60394168,2470.5,2470.4,0.61328495]
[1728799644879,0.86056536,2470.5,2470.4,0.61328495]
[1728799645056,1.71206155,2470.5,2470.4,0.61328495]
[1728799652453,1.71206155,2470.5,2470.4,0.48654682]
[1728799652669,1.71206155,2470.5,2470.4,0.61328929]
[1728799656394,1.71206155,2470.5,2470.4,0.48654719]
[1728799656599,1.71206155,2470.5,2470.4,0.61328926]
[1728799656780,1.71206155,2470.5,2470.4,0.61328933]
[1728799659265,1.71206155,2470.5,2470.4,0.91737612]
[1728799661712,0.95586155,2470.5,2470.4,4.96529612]
[1728799663781,0.95586155,2470.5,2470.4,4.96526877]
[1728799667391,0.95586155,2470.5,2470.4,4.17466137]
[1728799667593,0.95586155,2470.5,2470.4,4.17466206]
[1728799671189,0.95586155,2470.5,2470.4,4.17466205]
[1728799671845,0.10436536,2470.5,2470.4,4.17466205]
[1728799672045,2.31487632,2470.7,2470.4,4.17466205]
[1728799672243,0.85026853,2470.6,2470.5,0.12674205]
[1728799672443,1.27540279,2470.6,2470.5,0.12674205]
[1728799680553,1.37635222,2470.6,2470.5,0.12674205]
[1728799682393,0.10094943,2470.6,2470.5,0.12674205]
[1728799682688,0.95127644,2470.6,2470.5,0.12674205]
[1728799682897,0.10094943,2470.6,2470.5,0.12674205]
[1728799684087,0.95127907,2470.6,2470.5,0.12674205]
[1728799684867,0.95127907,2470.6,2470.4,4.04792]
[1728799685372,0.95127907,2470.6,2470.5,0.12673984]
[1728799692817,0.95127907,2470.6,2470.4,4.04792]
[1728799693110,0.95127907,2470.6,2470.5,0.12673741]
[1728799695410,0.10094943,2470.6,2470.5,0.12673741]
[1728799696117,0.10094943,2470.6,2470.4,4.04792]
[1728799696304,0.85024524,2470.5,2470.4,4.04792]
[1728799696492,0.85024524,2470.5,2470.4,4.17466148]
[1728799696698,0.95109968,2470.5,2470.4,4.17466148]
[1728799699914,0.95109968,2470.5,2470.4,4.04792]
[1728799700225,0.95109968,2470.5,2470.4,4.17466307]
[1728799700985,0.95109968,2470.5,2470.4,0.12674307]
[1728799703415,0.95109968,2470.5,2470.3,4.04795]
[1728799703620,0.95109968,2470.5,2470.4,0.1267423]
[1728799707150,0.95109968,2470.5,2470.3,4.04795]
[1728799707360,0.95109968,2470.5,2470.4,0.12674295]
[1728799708920,0.95109968,2470.5,2470.4,0.1267429]
[1728799714652,0.95109968,2470.5,2470.4,0.12674359]
[1728799725561,0.95109968,2470.5,2470.3,8.09593]
[1728799725723,0.95109968,2470.5,2470.4,0.12674441]
[1728799726256,0.95109968,2470.5,2470.4,4.93276441]
[1728799727753,0.95109968,2470.5,2470.4,5.72334204]
[1728799729043,0.95109968,2470.5,2470.4,1.67542204]
[1728799729770,0.95109968,2470.5,2470.4,1.67542577]
[1728799730150,0.95109968,2470.5,2470.4,0.91732577]
[1728799731887,0.95109968,2470.5,2470.4,0.91732595]
[1728799733238,0.95109968,2470.5,2470.4,0.91734233]
[1728799736878,0.95109968,2470.5,2470.4,0.91734143]
[1728799740566,0.95109968,2470.5,2470.4,0.91745979]
[1728799743079,0.95109968,2470.5,2470.4,0.91746766]
[1728799746804,0.95109968,2470.5,2470.3,4.04795]
[1728799746979,0.95109968,2470.5,2470.4,0.91747364]
[1728799747990,2.81186864,2470.5,2470.4,0.91747364]
[1728799748177,4.08727143,2470.5,2470.4,0.91747364]
[1728799750481,4.08727143,2470.5,2470.4,0.91732315]
[1728799752788,4.08727143,2470.5,2470.4,0.91730197]
[1728799753324,4.08727143,2470.5,2470.4,0.91725593]
[1728799753609,4.08727143,2470.5,2470.4,0.43081195]
[1728799753912,8.13503143,2470.5,2470.4,0.43081195]
[1728799754312,4.08727143,2470.5,2470.4,0.43081195]
[1728799756586,8.13503143,2470.5,2470.4,0.43081195]
[1728799757116,4.08727143,2470.5,2470.4,0.43081195]
[1728799757910,4.08727143,2470.5,2470.2,0.40610865]
[1728799758110,2.58769511,2470.5,2470.4,0.30395181]
[1728799758411,2.58769511,2470.5,2470.4,0.43070664]
[1728799759175,4.08727143,2470.5,2470.4,0.43070664]
[1728799759979,4.08727143,2470.5,2470.4,0.43067667]
[1728799761823,4.08727143,2470.5,2470.4,0.430652]
[1728799763014,8.13503143,2470.5,2470.4,0.430652]
[1728799764279,4.08727143,2470.5,2470.4,0.430652]
[1728799765365,4.08727143,2470.5,2470.4,0.43061593]
[1728799769013,4.08727143,2470.5,2470.4,0.43061584]
[1728799769544,8.13503143,2470.5,2470.4,0.43061584]
[1728799771760,4.08727143,2470.5,2470.4,0.43061584]
[1728799772547,8.13503143,2470.5,2470.4,0.43061584]
[1728799772747,8.13503143,2470.5,2470.4,0.30386106]
[1728799773560,8.13503143,2470.5,2470.4,0.43061393]
[1728799773561,1.37625723,2470.5,2470.4,0.43061393]
[1728799773764,1.37625723,2470.5,2470.4,1.25131393]
[1728799773765,0.95016673,2470.5,2470.4,1.25131393]
[1728799773932,0.95016673,2470.5,2470.4,1.73738397]
[1728799774137,0.95016673,2470.5,2470.4,1.25131393]
[1728799775730,0.10085444,2470.5,2470.4,1.25131393]
[1728799776145,0.10085444,2470.5,2470.4,1.73740433]
[1728799776319,0.10085444,2470.5,2470.4,1.3067904]
[1728799776521,0.95016673,2470.5,2470.4,0.8207]
[1728799776826,0.95016673,2470.5,2470.4,2.04116453]
[1728799779463,2.44974305,2470.5,2470.4,1.22046453]
[1728799780263,2.44974305,2470.5,2470.4,0.43056585]
[1728799783851,2.44974305,2470.5,2470.4,0.1267519]
[1728799784033,2.44974305,2470.5,2470.4,0.43062615]
[1728799787781,2.44974305,2470.5,2470.4,0.43062336]
[1728799788004,2.44974305,2470.5,2470.4,0.43066185]
[1728799788154,0.95016673,2470.5,2470.4,0.43066185]
[1728799788793,0.95016673,2470.5,2470.4,0.9169438]
[1728799789095,0.95016673,2470.5,2470.4,0.43066185]
[1728799789296,0.95016673,2470.5,2470.4,0.91696903]
[1728799789455,0.10085444,2470.5,2470.4,0.91696903]
[1728799791770,0.10085444,2470.5,2470.4,0.43072452]
[1728799791969,0.10085444,2470.5,2470.4,0.91708584]
[1728799792370,1.37625723,2470.5,2470.4,0.91708584]
[1728799794469,2.87583355,2470.5,2470.4,0.91708584]
[1728799795827,2.87583355,2470.5,2470.4,0.91708627]
[1728799796985,1.37625723,2470.5,2470.4,0.91708627]
[1728799806338,1.37625723,2470.5,2470.4,0.91724039]
[1728799807417,1.37625723,2470.5,2470.4,2.33436729]
[1728799807622,1.37625723,2470.5,2470.4,6.38228729]
[1728799808129,0.10085444,2470.5,2470.4,6.38228729]
[1728799808326,1.49957632,2470.8,2470.4,6.38228729]
[1728799808519,0.08040529,2470.7,2470.5,0.91724039]
[1728799808718,1.49957632,2470.8,2470.6,0.43078423]
[1728799808946,1.49957632,2470.8,2470.7,0.43078423]
[1728799812542,1.49957632,2470.8,2470.7,0.3040351]
[1728799812758,1.49957632,2470.8,2470.7,0.43077412]
[1728799813050,1.49957632,2470.8,2470.7,0.3040351]
[1728799813946,1.49957632,2470.8,2470.7,0.30392275]
[1728799814169,1.49957632,2470.8,2470.7,0.4306641]
[1728799815242,3.1989312,2470.8,2470.7,0.4306641]
[1728799815640,3.27988438,2470.8,2470.7,0.4306641]
[1728799817326,3.27988438,2470.8,2470.4,0.7979]
[1728799817544,3.27988438,2470.8,2470.7,0.30389299]
[1728799817745,3.27988438,2470.8,2470.7,0.43063198]
[1728799819726,1.78030806,2470.8,2470.7,0.43063198]
[1728799820073,0.85003089,2471.0,2470.9,8.4179]
[1728799820223,1.27490644,2471.1,2471.0,0.8208]
[1728799820224,0.85003089,2471.1,2471.0,0.8208]
[1728799820419,0.85003089,2471.1,2471.0,1.96259]
[1728799820621,0.85003089,2471.1,2471.0,2.26638442]
[1728799820858,0.85003089,2471.1,2471.0,1.96259]
[1728799821077,0.85003089,2471.1,2471.0,7.50910632]
[1728799821249,0.84891647,2471.3,2471.0,6.68830632]
[1728799821422,0.84891647,2471.3,2471.2,4.04661]
[1728799821855,0.84891647,2471.3,2471.2,5.17121463]
[1728799822157,0.84891647,2471.5,2471.2,5.17121463]
[1728799822363,0.84891647,2471.5,2471.3,0.30380463]
[1728799822567,2.34849279,2471.6,2471.2,4.86741]
[1728799822751,2.34849279,2471.6,2471.3,0.30337196]
[1728799822917,2.34849279,2471.6,2471.2,4.86741]
[1728799823118,2.34849279,2471.6,2471.3,0.30337202]
[1728799823345,2.34849279,2471.6,2471.2,4.86741]
[1728799823544,1.49957632,2471.6,2471.2,4.86741]
[1728799823964,2.34849279,2471.7,2471.2,4.86741]
[1728799824168,2.34849279,2471.8,2471.3,0.30320708]
[1728799824362,2.34849279,2471.8,2471.3,0.8208]
[1728799824563,1.49957632,2471.8,2471.3,0.8208]
[1728799825062,1.49957632,2471.8,2471.4,4.04627]
[1728799825870,0.7997,2471.9,2471.4,4.04627]
[1728799826083,2.59162861,2471.9,2471.4,4.04627]
[1728799826433,2.59162861,2471.9,2471.4,8.09244]
[1728799826839,2.59162861,2471.9,2471.4,4.04617]
[1728799827077,1.49957632,2471.8,2471.4,4.04617]
[1728799827378,0.06370168,2471.7,2471.4,4.04617]
[1728799827536,1.49957632,2471.8,2471.4,4.04617]
[1728799827949,1.09205229,2471.9,2471.6,4.04595]
[1728799827950,0.06370168,2471.7,2471.6,4.04595]
[1728799828157,0.84891647,2472.1,2471.6,4.04595]
[1728799828158,1.65721647,2472.1,2471.6,4.04595]
[1728799828440,1.49957632,2471.9,2471.6,4.04595]
[1728799828871,0.06380182,2471.8,2471.6,4.04595]
[1728799829884,0.06380182,2471.8,2471.4,4.04617]
[1728799829885,1.56337814,2471.8,2471.4,4.04617]
[1728799830339,1.56337814,2471.8,2471.4,8.09233]
[1728799830784,1.49957632,2471.7,2471.4,4.04616]
[1728799831085,0.06361646,2471.6,2471.4,4.04616]
[1728799831942,0.10507596,2471.6,2471.3,0.8208]
[1728799832992,0.10507596,2471.6,2471.3,4.86714]
[1728799833451,0.10507596,2471.6,2471.4,4.0462]
[1728799833785,0.10507596,2471.5,2471.4,4.0462]
[1728799834080,2.30787632,2471.8,2471.4,4.0462]
[1728799834271,0.10507596,2471.5,2471.4,4.0462]
[1728799834471,2.30787632,2471.8,2471.4,4.0462]
[1728799834671,0.10507596,2471.5,2471.4,4.0462]
[1728799834876,2.30787632,2471.8,2471.4,4.0462]
[1728799835041,0.10507596,2471.5,2471.4,4.0462]
[1728799835250,2.30787632,2471.8,2471.4,4.0462]
[1728799835449,0.10507596,2471.5,2471.4,4.0462]
[1728799835959,4.04533,2472.0,2471.4,4.851]
[1728799836168,0.1054485,2471.9,2471.5,4.04611]
[1728799836388,1.60502482,2471.9,2471.5,4.04611]
[1728799839890,1.60502482,2471.9,2471.7,4.04576]
[1728799839891,0.1054485,2471.9,2471.7,4.04576]
[1728799840614,1.49957632,2472.1,2471.7,4.04576]
[1728799840768,0.10538633,2471.8,2471.7,4.04576]
[1728799840971,2.34849279,2472.1,2471.7,4.04576]
[1728799841168,0.10557257,2472.0,2471.7,4.04576]
[1728799841517,0.10557257,2472.0,2471.8,4.04563]
[1728799841739,0.10557257,2472.0,2471.9,4.04547]
[1728799842008,0.10559177,2472.0,2471.9,4.04547]
[1728799842233,0.84891647,2472.2,2471.9,4.04547]
[1728799842373,0.10559177,2472.0,2471.8,4.04563]
[1728799842577,2.34849279,2472.2,2471.8,8.09111]
[1728799842796,0.10568488,2472.1,2471.8,8.09111]
[1728799842999,0.10568488,2472.1,2471.8,4.04548]
[1728799843913,1.6052612,2472.1,2471.8,4.04548]
[1728799844365,2.45417767,2472.1,2471.8,4.04548]
[1728799845144,0.95460135,2472.1,2471.8,4.935097]
[1728799845349,0.84891647,2472.0,2471.8,4.935097]
[1728799845852,0.10552214,2471.9,2471.8,4.935097]
[1728799847620,0.10552214,2471.9,2471.8,5.34276969]
[1728799848104,0.10552214,2471.9,2471.8,4.935097]
[1728799848452,0.10552214,2471.9,2471.8,4.04548]
[1728799851607,1.63531647,2472.1,2471.8,4.04548]
[1728799851850,0.10562059,2472.0,2471.8,4.04548]
[1728799852194,0.95453706,2472.0,2471.8,4.04548]
[1728799855387,0.95453706,2472.0,2471.8,4.04562]
[1728799865778,0.95453706,2472.0,2471.7,4.4559848]
[1728799867284,0.84891647,2471.9,2471.7,4.4559848]
[1728799867679,0.10545252,2471.8,2471.7,4.4559848]
[1728799868345,0.10545252,2471.8,2471.6,4.04585]
[1728799869023,0.10545252,2471.8,2471.6,4.45354835]
[1728799869224,0.10545252,2471.8,2471.6,4.04585]
[1728799874813,0.95436899,2471.8,2471.6,4.04585]
[1728799875021,0.95436899,2471.8,2471.6,8.0917]
[1728799875218,0.95436899,2471.8,2471.6,8.8455]
[1728799875917,0.95436899,2471.8,2471.7,4.04579]
[1728799876931,0.95436899,2471.8,2471.6,4.79965]
[1728799878198,0.95436899,2471.8,2471.6,8.84551]
[1728799878529,0.95436899,2471.8,2471.6,4.79965]
[1728799879008,0.95436899,2471.8,2471.6,4.79964]
[1728799879209,0.95436899,2471.8,2471.6,6.96987552]
[1728799879414,0.95436899,2471.8,2471.7,4.79959]
[1728799879736,0.95436899,2471.8,2471.7,6.29916632]
[1728799880318,0.10545252,2471.8,2471.7,6.29916632]
[1728799880638,0.95436899,2471.8,2471.7,6.42583324]
[1728799880861,0.95436899,2471.8,2471.7,7.58080406]
[1728799881403,0.95436899,2471.8,2471.7,8.06664916]
[1728799882103,0.95436899,2471.8,2471.7,7.58080512]
[1728799882329,0.95436899,2471.8,2471.7,8.0666496]
[1728799885743,0.95436899,2471.8,2471.7,7.58080417]
[1728799885951,0.95436899,2471.8,2471.7,8.37052029]
[1728799887167,0.95436899,2471.8,2471.7,6.87094397]
[1728799888738,0.95436899,2471.8,2471.7,6.87094409]
[1728799889665,0.95436899,2471.8,2471.7,5.95456082]
[1728799889830,0.95436899,2471.8,2471.7,6.87098247]
[1728799894246,0.10545252,2471.8,2471.7,6.87098247]